bitfinex/quotes_BTCUSD_20250527
["timestamp","ask_amount","ask_price","bid_price","bid_amount"]
[1748322994898,2.04477655,108810.0,108800.0,0.01902037]
[1748322995961,0.51676471,108790.0,108780.0,0.005]
[1748322996125,1.22610465,108790.0,108780.0,0.005]
[1748322997137,0.88503027,108790.0,108780.0,0.005]
[1748322997299,1.22910465,108790.0,108780.0,0.005]
[1748322998174,1.23210465,108790.0,108780.0,0.005]
[1748323000248,1.41177831,108790.0,108780.0,0.005]
[1748323000671,1.33760465,108790.0,108780.0,0.005]
[1748323001215,1.34633354,108790.0,108780.0,0.005]
[1748323001514,1.37392954,108790.0,108780.0,0.005]
[1748323002890,1.67392954,108790.0,108780.0,0.005]
[1748323003771,1.67092954,108790.0,108780.0,0.005]
[1748323004114,1.67592954,108790.0,108780.0,0.005]
[1748323004532,1.67292954,108790.0,108780.0,0.005]
[1748323004740,1.67792954,108790.0,108780.0,0.005]
[1748323005341,1.61422954,108790.0,108780.0,0.005]
[1748323005695,1.67792954,108790.0,108780.0,0.005]
[1748323007442,1.68792954,108790.0,108780.0,0.005]
[1748323007653,2.02792954,108790.0,108780.0,0.005]
[1748323008858,2.03888156,108790.0,108780.0,0.005]
[1748323010637,2.01128556,108790.0,108780.0,0.005]
[1748323011059,2.02591326,108790.0,108780.0,0.005]
[1748323011668,2.08105326,108790.0,108780.0,0.005]
[1748323013507,2.14416074,108790.0,108780.0,0.005]
[1748323014101,2.16980205,108790.0,108780.0,0.005]
[1748323015597,0.3,108780.0,108770.0,0.04179569]
[1748323015800,0.3,108780.0,108750.0,0.00154]
[1748323015801,0.27912049,108760.0,108750.0,0.00154]
[1748323016184,1.70996568,108760.0,108750.0,0.00154]
[1748323016516,0.2023913,108700.0,108690.0,0.37346944]
[1748323016732,0.2023913,108700.0,108690.0,0.5666793]
[1748323016953,0.2023913,108700.0,108690.0,0.93367359]
[1748323017126,0.2023913,108700.0,108690.0,0.98897158]
[1748323017333,0.2023913,108700.0,108690.0,1.0491582]
[1748323017969,0.2023913,108700.0,108690.0,1.0405641]
[1748323018407,0.2033913,108700.0,108690.0,1.3823241]
[1748323018597,0.2033913,108700.0,108690.0,1.0405641]
[1748323018819,0.2043913,108700.0,108690.0,1.3823641]
[1748323019319,0.01119895,108700.0,108690.0,1.39156407]
[1748323019468,0.01119887,108700.0,108690.0,1.40076395]
[1748323019688,0.02759524,108710.0,108700.0,0.5515905]
[1748323019902,0.02759524,108710.0,108700.0,1.04988639]
[1748323020341,0.01839705,108710.0,108700.0,0.60709147]
[1748323020576,0.21157104,108710.0,108700.0,0.95116585]
[1748323020800,0.21157104,108710.0,108700.0,0.59789218]
[1748323021043,0.21155211,108720.0,108710.0,0.22497449]
[1748323021281,0.20235468,108720.0,108710.0,0.56904887]
[1748323021492,0.20235468,108720.0,108710.0,0.41797316]
[1748323021710,0.20235468,108720.0,108710.0,0.61114757]
[1748323022149,0.20235468,108720.0,108710.0,0.62034618]
[1748323022375,0.25335468,108720.0,108710.0,0.62034618]
[1748323022575,0.25435468,108720.0,108710.0,0.62034618]
[1748323023104,0.25435468,108720.0,108710.0,0.97134471]
[1748323023538,0.69925707,108720.0,108710.0,0.0647]
[1748323023750,0.42341707,108720.0,108710.0,0.0647]
[1748323023955,0.69925707,108720.0,108710.0,0.0647]
[1748323028961,0.62508341,108720.0,108710.0,0.0647]
[1748323029861,0.21693215,108700.0,108690.0,0.00055796]
[1748323030084,0.92639209,108700.0,108690.0,0.03295796]
[1748323030301,0.58231771,108700.0,108690.0,0.06575796]
[1748323031224,0.58231771,108700.0,108690.0,0.00055796]
[1748323031225,1.30256575,108700.0,108690.0,0.00055796]
[1748323031431,1.36536575,108700.0,108690.0,0.00055796]
[1748323031647,0.95255209,108700.0,108690.0,0.00055796]
[1748323031863,1.22843209,108700.0,108690.0,0.00055796]
[1748323032085,0.88435771,108700.0,108690.0,0.00055796]
[1748323032288,1.22843209,108700.0,108690.0,0.00055796]
[1748323032491,1.29093209,108700.0,108690.0,0.00055796]
[1748323033381,0.94685771,108700.0,108690.0,0.00055796]
[1748323033579,1.29093209,108700.0,108690.0,0.00055796]
[1748323034611,1.28993209,108700.0,108690.0,0.00055796]
[1748323035049,1.29293209,108700.0,108690.0,0.00055796]
[1748323035733,0.20776849,108680.0,108670.0,0.03318363]
[1748323035967,2.04615647,108680.0,108670.0,0.0008334]
[1748323036185,0.57278628,108670.0,108660.0,0.0164804]
[1748323036408,0.94140622,108670.0,108660.0,0.0164804]
[1748323036618,1.56296622,108670.0,108660.0,0.01661779]
[1748323036837,0.29733184,108670.0,108660.0,0.04921779]
[1748323037030,0.58721148,108670.0,108660.0,0.08211779]
[1748323037238,0.58725148,108670.0,108660.0,0.08211779]
[1748323037840,0.58725148,108670.0,108660.0,0.01661779]
[1748323037841,0.93132586,108670.0,108660.0,0.01661779]
[1748323038051,1.26672586,108670.0,108660.0,0.01661779]
[1748323038312,1.10410406,108660.0,108650.0,0.05857908]
[1748323038509,1.91189766,108660.0,108650.0,0.05857908]
[1748323038713,1.56782328,108660.0,108650.0,0.05121932]
[1748323038914,2.21189766,108660.0,108650.0,0.04385956]
[1748323039131,2.83349766,108660.0,108650.0,0.04385956]
[1748323039476,2.83357766,108660.0,108650.0,0.03649977]
[1748323039890,1.49364962,108660.0,108650.0,0.02913998]
[1748323040098,2.05242962,108660.0,108650.0,0.02913998]
[1748323040301,2.05242962,108660.0,108650.0,0.02178019]
[1748323040302,2.11532962,108660.0,108650.0,0.02178019]
[1748323040506,2.43941754,108660.0,108650.0,0.02178019]
[1748323040726,2.43941754,108660.0,108650.0,0.0144204]
[1748323040963,2.43941754,108660.0,108650.0,0.00706061]
[1748323041173,2.0060579,108660.0,108650.0,0.00706061]
[1748323041374,0.21706257,108630.0,108620.0,0.0329]
[1748323041579,0.58260813,108630.0,108620.0,0.03339863]
[1748323042129,0.58260813,108630.0,108620.0,0.06559863]
[1748323042339,0.60660813,108630.0,108620.0,0.00049863]
[1748323042546,0.60660813,108630.0,108620.0,0.06569863]
[1748323042547,0.58260813,108630.0,108620.0,0.06569863]
[1748323042758,0.58560813,108630.0,108620.0,0.06569863]
[1748323043209,0.20552172,108630.0,108620.0,0.07226849]
[1748323043417,0.20552172,108630.0,108620.0,0.06569863]
[1748323043829,0.22006257,108630.0,108620.0,0.06569863]
[1748323044034,0.30960813,108630.0,108620.0,0.06569863]
[1748323045726,0.30960813,108630.0,108620.0,0.00049863]
[1748323045948,0.63369605,108630.0,108620.0,0.00049863]
[1748323046187,0.30960813,108630.0,108620.0,0.00049863]
[1748323046407,0.58564813,108630.0,108620.0,0.00049863]
[1748323046631,0.58564813,108630.0,108620.0,0.03079863]
[1748323047088,0.30960813,108630.0,108620.0,0.03079863]
[1748323047305,0.58564813,108630.0,108620.0,0.03079863]
[1748323049139,0.30960813,108630.0,108620.0,0.03079863]
[1748323049369,0.58568813,108630.0,108620.0,0.03079863]
[1748323050238,0.30960813,108630.0,108620.0,0.06329863]
[1748323050459,0.58568813,108630.0,108620.0,0.06329863]
[1748323050944,0.30960813,108630.0,108620.0,0.06329863]
[1748323051147,0.29506728,108630.0,108620.0,0.06329863]
[1748323051820,0.30960813,108630.0,108620.0,0.06329863]
[1748323052323,0.20552172,108630.0,108620.0,0.40917863]
[1748323052548,0.25552172,108630.0,108620.0,0.40917863]
[1748323053841,0.24631659,108630.0,108620.0,0.74917863]
[1748323054065,0.24631659,108630.0,108620.0,0.83870014]
[1748323055541,0.24631659,108630.0,108620.0,0.81096349]
[1748323058159,0.24631659,108630.0,108620.0,1.00429787]
[1748323058368,0.07141052,108630.0,108620.0,1.02270974]
[1748323058593,0.08061608,108630.0,108620.0,1.02270982]
[1748323058806,0.08061608,108630.0,108620.0,0.91161776]
[1748323059014,0.07141052,108630.0,108620.0,0.90241187]
[1748323061177,0.24631667,108630.0,108620.0,1.32832847]
[1748323061730,0.24631667,108630.0,108620.0,1.35842847]
[1748323064499,0.2371112,108630.0,108620.0,1.16509409]
[1748323065483,0.2371112,108630.0,108620.0,0.81949294]
[1748323065706,0.2371112,108630.0,108620.0,0.72997143]
[1748323066052,0.24631659,108630.0,108620.0,1.26890696]
[1748323066488,0.24631659,108630.0,108620.0,1.27811311]
[1748323067436,0.24631659,108630.0,108620.0,1.28731909]
[1748323067668,0.24631659,108630.0,108620.0,1.27811311]
[1748323067962,0.24631659,108630.0,108620.0,1.36763462]
[1748323068214,0.24631659,108630.0,108620.0,1.37684068]
[1748323068426,0.07141052,108630.0,108620.0,1.38604666]
[1748323068629,0.26472719,108630.0,108620.0,1.38604666]
[1748323068874,0.26472719,108630.0,108620.0,1.36763462]
[1748323069183,0.26472719,108630.0,108620.0,1.37684068]
[1748323069837,0.053,108630.0,108620.0,1.37684068]
[1748323070046,0.053,108630.0,108620.0,1.70969049]
[1748323070249,0.053,108630.0,108620.0,1.66499949]
[1748323070437,0.053,108630.0,108620.0,1.53260749]
[1748323070734,0.052,108630.0,108620.0,1.53260749]
[1748323071144,0.05,108630.0,108620.0,1.53260749]
[1748323071398,0.051,108630.0,108620.0,1.53260749]
[1748323071684,0.001,108630.0,108620.0,1.54182874]
[1748323072192,0.002,108630.0,108620.0,1.54182874]
[1748323073200,0.002,108630.0,108620.0,1.19594874]
[1748323073399,0.20452172,108630.0,108620.0,0.75738]
[1748323073623,0.20452172,108630.0,108620.0,0.95071438]
[1748323073814,0.21372728,108630.0,108620.0,0.96912642]
[1748323074032,0.26372728,108630.0,108620.0,0.96912642]
[1748323074174,0.26372728,108630.0,108620.0,1.40424908]
[1748323075368,0.26372728,108630.0,108620.0,1.3950431]
[1748323076270,0.26372728,108630.0,108620.0,1.40424908]
[1748323078499,0.20255901,108610.0,108600.0,0.40464]
[1748323078756,0.23445901,108610.0,108600.0,0.4047896]
[1748323078966,0.60008457,108610.0,108600.0,0.4047896]
[1748323079138,0.60008457,108610.0,108600.0,0.41339561]
[1748323079551,0.56818457,108610.0,108600.0,0.75339561]
[1748323079731,0.56918457,108610.0,108600.0,0.41339561]
[1748323080138,0.56918457,108610.0,108600.0,0.75339561]
[1748323080347,0.57018457,108610.0,108600.0,0.75339561]
[1748323080550,0.57018457,108610.0,108600.0,0.48827712]
[1748323080749,0.57018457,108610.0,108600.0,0.75339561]
[1748323081067,0.57018457,108610.0,108600.0,1.16289676]
[1748323081451,0.57018457,108610.0,108600.0,0.78639561]
[1748323081649,0.20455901,108610.0,108600.0,0.81859561]
[1748323081857,0.20455901,108610.0,108600.0,1.16419676]
[1748323082276,0.20455901,108610.0,108600.0,1.17340486]
[1748323082478,0.002,108610.0,108600.0,6.06770841]
[1748323082821,0.002,108610.0,108600.0,5.07413041]
[1748323083038,0.02041391,108610.0,108600.0,1.01060568]
[1748323083256,0.02962048,108610.0,108600.0,1.36541467]
[1748323083470,0.002,108610.0,108600.0,2.28249508]
[1748323083695,0.002,108610.0,108600.0,2.37201659]
[1748323084119,0.002,108610.0,108600.0,2.00483082]
[1748323084567,0.002,108610.0,108600.0,1.99622481]
[1748323085631,0.002,108610.0,108600.0,2.08577037]
[1748323091195,0.002,108610.0,108600.0,1.76175384]
[1748323091419,0.20455901,108610.0,108600.0,0.3901496]
[1748323091643,0.32440457,108610.0,108600.0,0.0501496]
[1748323091848,0.37134542,108610.0,108600.0,0.0501496]
[1748323093883,0.37134542,108610.0,108600.0,0.0301496]
[1748323094126,0.97148195,108610.0,108600.0,0.0387525]
[1748323094342,0.64746542,108610.0,108600.0,0.0387525]
[1748323094546,0.66122811,108610.0,108600.0,0.0387525]
[1748323094741,0.98524464,108610.0,108600.0,0.0387525]
[1748323094968,0.66122811,108610.0,108600.0,0.0387525]
[1748323095207,0.65922811,108610.0,108600.0,0.0387525]
[1748323095432,1.01694811,108610.0,108600.0,0.0301496]
[1748323095785,1.01494811,108610.0,108600.0,0.0301496]
[1748323096550,1.01394811,108610.0,108600.0,0.0301496]
[1748323096775,0.65922811,108610.0,108600.0,0.0301496]
[1748323096996,0.37356726,108610.0,108600.0,0.0301496]
[1748323097220,0.37296726,108610.0,108600.0,0.0301496]
[1748323097441,0.64908726,108610.0,108600.0,0.0301496]
[1748323097664,0.37296726,108610.0,108600.0,0.0301496]
[1748323097876,0.31086726,108610.0,108600.0,0.0301496]
[1748323098116,0.20755901,108610.0,108600.0,0.0301496]
[1748323098338,0.02341391,108610.0,108600.0,0.56351976]
[1748323098557,0.21676618,108610.0,108600.0,0.9253676]
[1748323098778,0.04182833,108610.0,108600.0,1.0240967]
[1748323099012,0.02341391,108610.0,108600.0,0.94378269]
[1748323099235,0.0234134,108610.0,108600.0,1.69616422]
[1748323099453,0.005,108610.0,108600.0,1.84738573]
[1748323099669,0.01220666,108610.0,108600.0,1.84738573]
[1748323099868,0.01320657,108610.0,108600.0,1.84738573]
[1748323100087,0.01020657,108610.0,108600.0,1.84738573]
[1748323100307,0.02041331,108610.0,108600.0,1.80663073]
[1748323100512,0.02041331,108610.0,108600.0,1.78616073]
[1748323100743,0.002,108610.0,108600.0,1.78616073]
[1748323101387,0.002,108610.0,108600.0,1.87570629]
[1748323101657,0.002,108610.0,108600.0,2.54942629]
[1748323101864,0.002,108610.0,108600.0,2.87344282]
[1748323102297,0.002,108610.0,108600.0,2.54942629]
[1748323103138,0.01840993,108630.0,108620.0,0.55174634]
[1748323103292,0.02761515,108630.0,108620.0,0.90434634]
[1748323103505,0.01840993,108630.0,108620.0,1.22836287]
[1748323103705,0.02761523,108630.0,108620.0,1.22836287]
[1748323103935,0.03682062,108630.0,108620.0,1.22836287]
[1748323104128,0.26747374,108640.0,108630.0,0.54252206]
[1748323104129,0.09258265,108640.0,108630.0,0.54252206]
[1748323104485,0.08337777,108640.0,108630.0,0.88494877]
[1748323104695,0.01840815,108640.0,108630.0,1.83011099]
[1748323105110,0.01840815,108640.0,108630.0,1.54409948]
[1748323105320,0.03681697,108640.0,108630.0,0.86653748]
[1748323106051,0.04602167,108640.0,108630.0,0.54252138]
[1748323106288,0.04602167,108640.0,108630.0,0.90432694]
[1748323106497,0.04602167,108640.0,108630.0,0.9135319]
[1748323106711,0.2301166,108640.0,108630.0,0.99384853]
[1748323106898,0.2311166,108640.0,108630.0,0.99384853]
[1748323107103,0.2219124,108640.0,108630.0,0.90432702]
[1748323107313,0.2229124,108640.0,108630.0,0.90532702]
[1748323107665,0.03881815,108640.0,108630.0,0.90532702]
[1748323107884,0.02140882,108640.0,108630.0,0.91453198]
[1748323108108,0.0398173,108640.0,108630.0,1.00405349]
[1748323108648,0.23311626,108640.0,108630.0,0.99484861]
[1748323108988,0.22391223,108640.0,108630.0,0.89612197]
[1748323109219,0.22391223,108640.0,108630.0,0.90532702]
[1748323109939,0.03061327,108640.0,108630.0,0.90532702]
[1748323110124,0.03061327,108640.0,108630.0,0.56193198]
[1748323110326,0.03981789,108640.0,108630.0,0.91449198]
[1748323110544,0.03981789,108640.0,108630.0,1.00401349]
[1748323112337,0.02140873,108640.0,108630.0,1.00401349]
[1748323112532,0.03061327,108640.0,108630.0,1.00401349]
[1748323112733,0.01220395,108640.0,108630.0,1.00401349]
[1748323113050,0.01220395,108640.0,108630.0,2.08694402]
[1748323113285,0.02140798,108640.0,108630.0,2.08694402]
[1748323113509,0.01220395,108640.0,108630.0,2.08694402]
[1748323113749,0.03061226,108640.0,108630.0,1.60016702]
[1748323113931,0.03981671,108640.0,108630.0,1.39233002]
[1748323114137,0.03981671,108640.0,108630.0,1.49433602]
[1748323114403,0.03981671,108640.0,108630.0,1.49936502]
[1748323114617,0.03981671,108640.0,108630.0,1.53991802]
[1748323114839,0.02140798,108640.0,108630.0,1.53991802]
[1748323115063,0.04902133,108640.0,108630.0,1.39233002]
[1748323115666,0.04902133,108640.0,108630.0,1.32803002]
[1748323115871,0.0398173,108640.0,108630.0,1.47244002]
[1748323116077,0.0398173,108640.0,108630.0,1.13792349]
[1748323116480,0.01220411,108640.0,108630.0,1.13792349]
[1748323116630,0.02140839,108640.0,108630.0,1.20082349]
[1748323117004,0.02140839,108640.0,108630.0,1.52484002]
[1748323118503,0.003,108640.0,108630.0,1.52484002]
[1748323118949,0.01220395,108640.0,108630.0,1.52484002]
[1748323119165,0.003,108640.0,108630.0,1.52484002]
[1748323119803,0.01220403,108640.0,108630.0,1.52484002]
[1748323120020,0.003,108640.0,108630.0,1.52484002]
[1748323120239,0.01220403,108640.0,108630.0,1.52484002]
[1748323120691,0.003,108640.0,108630.0,1.52484002]
[1748323120936,0.01220403,108640.0,108630.0,1.52484002]
[1748323122641,0.003,108640.0,108630.0,1.52484002]
[1748323122860,0.01220403,108640.0,108630.0,1.52484002]
[1748323123068,0.003,108640.0,108630.0,1.52484002]
[1748323123751,0.003,108640.0,108630.0,1.53410313]
[1748323124368,0.01220403,108640.0,108630.0,1.53410313]
[1748323125529,0.003,108640.0,108630.0,1.53410313]
[1748323125732,0.01220403,108640.0,108630.0,1.53410313]
[1748323125937,0.01220395,108640.0,108630.0,1.53410313]
[1748323126380,0.003,108640.0,108630.0,1.53410313]
[1748323126607,0.01220395,108640.0,108630.0,1.53410313]
[1748323128113,0.01220395,108640.0,108630.0,1.55558136]
[1748323128324,0.02140798,108640.0,108630.0,1.83162136]
[1748323130245,0.01220395,108640.0,108630.0,1.83162136]
[1748323131380,0.01220395,108640.0,108630.0,0.7946266]
[1748323131597,0.02140806,108640.0,108630.0,1.54161636]
[1748323132015,0.01220395,108640.0,108630.0,1.54161636]
[1748323132232,0.02140798,108640.0,108630.0,1.54161636]
[1748323133050,0.003,108640.0,108630.0,1.54161636]
[1748323133259,0.01220395,108640.0,108630.0,1.54161636]
[1748323133647,0.003,108640.0,108630.0,1.69526192]
[1748323135224,0.003,108640.0,108630.0,1.34976716]
[1748323135439,0.003,108640.0,108630.0,2.06837068]
[1748323136067,0.003,108640.0,108630.0,2.07837068]
[1748323137024,0.002,108640.0,108630.0,2.07837068]
[1748323137214,0.01840306,108670.0,108660.0,0.55166839]
[1748323137215,0.02760472,108670.0,108660.0,0.55166839]
[1748323137359,0.02760472,108670.0,108660.0,1.30997254]
[1748323137580,0.01840306,108670.0,108660.0,1.30997254]
[1748323137979,0.02760472,108670.0,108660.0,1.30997254]
[1748323138539,0.02810062,108670.0,108660.0,1.30997254]
[1748323138782,0.03010062,108670.0,108660.0,1.31097254]
[1748323139008,0.03930245,108670.0,108660.0,1.31097254]
[1748323139195,0.03010062,108670.0,108660.0,1.31097254]
[1748323139630,0.04030245,108670.0,108660.0,1.31097254]
[1748323140086,0.0311007,108670.0,108660.0,1.31097254]
[1748323140321,0.04030261,108670.0,108660.0,1.31097254]
[1748323140766,0.04030261,108670.0,108660.0,0.001]
[1748323140767,0.99222441,108670.0,108660.0,0.001]
[1748323141190,1.29222441,108670.0,108660.0,0.001]
[1748323142966,1.30096853,108670.0,108660.0,0.001]
[1748323143313,1.29996853,108670.0,108660.0,0.001]
[1748323144013,0.95647377,108670.0,108660.0,0.001]
[1748323145209,0.95747377,108670.0,108660.0,0.001]
[1748323145415,0.22465218,108610.0,108600.0,0.03]
[1748323145624,0.22465218,108610.0,108600.0,0.03230178]
[1748323145837,0.22465218,108610.0,108600.0,0.03]
[1748323146082,0.22465218,108610.0,108600.0,0.37]
[1748323146536,0.22465218,108610.0,108600.0,0.03]
[1748323146787,0.22465218,108610.0,108600.0,0.37]
[1748323146970,0.22565218,108610.0,108600.0,0.3711496]
[1748323147330,0.22465218,108610.0,108600.0,0.40228675]
[1748323147531,0.22565218,108610.0,108600.0,0.40128675]
[1748323147733,0.22665218,108610.0,108600.0,0.40228675]
[1748323147936,0.20455918,108610.0,108600.0,0.40228675]
[1748323148377,0.19535218,108610.0,108600.0,0.40228675]
[1748323148584,0.19535218,108610.0,108600.0,0.3711496]
[1748323151260,0.19535218,108610.0,108600.0,0.7204696]
[1748323152404,0.21376618,108610.0,108600.0,0.9230476]
[1748323152618,0.21376618,108610.0,108600.0,0.93225536]
[1748323152856,0.20455935,108610.0,108600.0,0.7204696]
[1748323153083,0.20455935,108610.0,108600.0,0.80999111]
[1748323153686,0.20455935,108610.0,108600.0,0.81003111]
[1748323154568,0.01120657,108610.0,108600.0,1.03102454]
[1748323154773,0.02962014,108610.0,108600.0,1.34583487]
[1748323154990,0.02962014,108610.0,108600.0,1.02181704]
[1748323155239,0.02962014,108610.0,108600.0,1.59173954]
[1748323155240,0.04803439,108610.0,108600.0,1.59173954]
[1748323155444,0.04803439,108610.0,108600.0,1.60094713]
[1748323155671,0.04803439,108610.0,108600.0,1.2769293]
[1748323155885,0.002,108610.0,108600.0,1.69049209]
[1748323156103,0.002,108610.0,108600.0,1.96657209]
[1748323157013,0.002,108610.0,108600.0,2.36413209]
[1748323157239,0.002,108610.0,108600.0,2.37413209]
[1748323157451,0.002,108610.0,108600.0,2.40175209]
[1748323157632,0.001,108610.0,108600.0,2.40075209]
[1748323158074,0.002,108610.0,108600.0,2.40075209]
[1748323158506,0.001,108610.0,108600.0,2.40075209]
[1748323158716,0.002,108610.0,108600.0,2.40075209]
[1748323159766,0.001,108610.0,108600.0,2.40075209]
[1748323160172,0.002,108610.0,108600.0,2.72676992]
[1748323160359,0.002,108610.0,108600.0,2.40275209]
[1748323164020,0.002,108610.0,108600.0,2.76985486]
[1748323167718,0.002,108610.0,108600.0,2.78439571]
[1748323167932,0.07417366,108640.0,108630.0,0.89728715]
[1748323168151,0.08337769,108640.0,108630.0,3.87756566]
[1748323168377,0.07417366,108640.0,108630.0,3.87756566]
[1748323168606,0.0305,108650.0,108630.0,3.85915497]
[1748323168836,0.14867642,108660.0,108650.0,0.55168788]
[1748323169048,0.36034532,108660.0,108650.0,0.98424629]
[1748323169282,0.35114273,108660.0,108650.0,0.98424629]
[1748323170023,0.35363863,108660.0,108650.0,0.99444981]
[1748323170214,0.35563863,108660.0,108650.0,0.99544981]
[1748323170440,0.35563863,108660.0,108650.0,0.98624629]
[1748323170674,0.34643587,108660.0,108650.0,0.98624629]
[1748323170888,0.12977516,108660.0,108650.0,1.00465308]
[1748323171103,0.12057198,108660.0,108650.0,1.00465308]
[1748323171316,0.12977457,108660.0,108650.0,1.00465308]
[1748323171520,0.02290091,108660.0,108650.0,1.35021338]
[1748323172573,0.02290083,108660.0,108650.0,1.35021338]
[1748323172975,0.01369824,108660.0,108650.0,1.47437838]
[1748323173404,0.02290075,108660.0,108650.0,1.47437838]
[1748323173619,0.01369824,108660.0,108650.0,1.47437838]
[1748323175100,0.01369824,108660.0,108650.0,1.12881808]
[1748323175282,0.01369824,108660.0,108650.0,1.47437838]
[1748323175483,0.02290075,108660.0,108650.0,1.47437838]
[1748323176111,0.01369824,108660.0,108650.0,1.47437838]
[1748323176318,0.02290066,108660.0,108650.0,1.47437838]
[1748323177361,0.01369824,108660.0,108650.0,1.47437838]
[1748323177568,0.0044959,108660.0,108650.0,1.47437838]
[1748323178009,0.0044959,108660.0,108650.0,0.77660213]
[1748323178224,0.6196757,108660.0,108650.0,0.002]
[1748323178437,0.70922126,108660.0,108650.0,0.002]
[1748323180641,0.72376211,108660.0,108650.0,0.002]
[1748323182148,0.23255901,108610.0,108600.0,0.14714151]
[1748323182403,0.23255901,108610.0,108600.0,0.60315007]
[1748323182620,0.23255901,108610.0,108600.0,0.38216]
[1748323182844,0.23255901,108610.0,108600.0,0.3913681]
[1748323182845,0.25655218,108610.0,108600.0,0.3913681]
[1748323183322,0.25655218,108610.0,108600.0,0.7313681]
[1748323183526,0.25655218,108610.0,108600.0,0.48103921]
[1748323183761,0.25655218,108610.0,108600.0,0.82103921]
[1748323183981,0.19435218,108610.0,108600.0,1.02661687]
[1748323184202,0.20355901,108610.0,108600.0,1.32638254]
[1748323184457,0.20355901,108610.0,108600.0,1.19130587]
[1748323184666,0.20355901,108610.0,108600.0,1.14520311]
[1748323185151,0.20455901,108610.0,108600.0,1.14920311]
[1748323185457,0.20455901,108610.0,108600.0,1.14924311]
[1748323185841,0.20455901,108610.0,108600.0,1.12843811]
[1748323186527,0.20455901,108610.0,108600.0,1.13764587]
[1748323186706,0.20455901,108610.0,108600.0,1.14685354]
[1748323186915,0.01120657,108610.0,108600.0,1.4801962]
[1748323187137,0.002,108610.0,108600.0,1.4801962]
[1748323187356,0.01120649,108610.0,108600.0,1.5458962]
[1748323187773,0.002,108610.0,108600.0,1.5458962]
[1748323187981,0.02041323,108610.0,108600.0,1.5458962]
[1748323188201,0.01120649,108610.0,108600.0,1.5458962]
[1748323188924,0.02041306,108610.0,108600.0,1.5458962]
[1748323189162,0.002,108610.0,108600.0,1.5458962]
[1748323189372,0.002,108610.0,108600.0,1.63544176]
[1748323193911,0.002,108610.0,108600.0,2.03296176]
[1748323196124,0.002,108610.0,108600.0,1.68076176]
[1748323196305,0.002,108610.0,108600.0,1.6609106]
[1748323197407,0.02041315,108610.0,108600.0,1.6609106]
[1748323197827,0.02041315,108610.0,108600.0,1.98504576]
[1748323198219,0.02961998,108610.0,108600.0,1.98504576]
[1748323198400,0.02961989,108610.0,108600.0,1.98504576]
[1748323198632,0.20455825,108610.0,108600.0,0.25122816]
[1748323198859,0.26875901,108610.0,108600.0,0.0371496]
[1748323199061,0.54483901,108610.0,108600.0,0.0371496]
[1748323199685,0.54383901,108610.0,108600.0,0.3865896]
[1748323199896,0.54383901,108610.0,108600.0,0.7265896]
[1748323200115,0.54383901,108610.0,108600.0,0.7235896]
[1748323200324,0.54483901,108610.0,108600.0,0.7235896]
[1748323200528,0.54683901,108610.0,108600.0,0.7245896]
[1748323201423,0.54583901,108610.0,108600.0,0.7235896]
[1748323201631,0.54583901,108610.0,108600.0,0.7245896]
[1748323201632,0.54683901,108610.0,108600.0,0.7245896]
[1748323204256,0.37484542,108610.0,108600.0,0.0321496]
[1748323204462,0.65096542,108610.0,108600.0,0.0321496]
[1748323205141,0.63642457,108610.0,108600.0,0.0321496]
[1748323205364,0.36030457,108610.0,108600.0,0.3846296]
[1748323205582,0.63642457,108610.0,108600.0,0.3846296]
[1748323206051,0.63642457,108610.0,108600.0,0.80722155]
[1748323206052,0.27075901,108610.0,108600.0,0.80722155]
[1748323206268,0.20655901,108610.0,108600.0,1.00059154]
[1748323206477,0.20655901,108610.0,108600.0,0.92720769]
[1748323206869,0.02241391,108610.0,108600.0,0.94562295]
[1748323207098,0.21576626,108610.0,108600.0,0.92720769]
[1748323208863,0.20655943,108610.0,108600.0,0.92720769]
[1748323209092,0.20655943,108610.0,108600.0,1.02593704]
[1748323209499,0.02241391,108610.0,108600.0,1.02593704]
[1748323209761,0.0224134,108610.0,108600.0,1.04435213]
[1748323209975,0.03162048,108610.0,108600.0,1.64460729]
[1748323210151,0.04082765,108610.0,108600.0,1.64460729]
[1748323210356,0.04082765,108610.0,108600.0,2.04220729]
[1748323210559,0.03162048,108610.0,108600.0,1.71807213]
[1748323212019,0.0224134,108610.0,108600.0,1.71807213]
[1748323212232,0.004,108610.0,108600.0,1.71807213]
[1748323212431,0.01320666,108610.0,108600.0,2.04220729]
[1748323212646,0.004,108610.0,108600.0,2.07400729]
[1748323213070,0.01320649,108610.0,108600.0,2.07400729]
[1748323213272,0.004,108610.0,108600.0,2.16355285]
[1748323213659,0.01320649,108610.0,108600.0,2.16355285]
[1748323214011,0.004,108610.0,108600.0,2.16355285]
[1748323214157,0.004,108610.0,108600.0,2.19465285]
[1748323214981,0.01320649,108610.0,108600.0,2.19465285]
[1748323215682,0.01320649,108610.0,108600.0,2.80008985]
[1748323216140,0.02241315,108610.0,108600.0,2.82163496]
[1748323216346,0.01320649,108610.0,108600.0,2.82163496]
[1748323216546,0.004,108610.0,108600.0,2.82163496]
[1748323217920,0.53439019,108640.0,108600.0,2.49267627]
[1748323217921,0.00920395,108640.0,108600.0,2.49267627]
[1748323218126,0.0276126,108640.0,108630.0,0.89740721]
[1748323218444,0.05921099,108650.0,108640.0,0.34920462]
[1748323218647,0.2432883,108650.0,108640.0,0.53329887]
[1748323218912,0.2432883,108650.0,108640.0,0.54250341]
[1748323219114,0.2432883,108650.0,108640.0,0.55170769]
[1748323219447,0.2432883,108650.0,108640.0,0.6504334]
[1748323219770,0.24478389,108650.0,108640.0,0.6514334]
[1748323219947,0.24578389,108650.0,108640.0,0.6524334]
[1748323220562,0.03010658,108650.0,108640.0,0.6524334]
[1748323220759,0.02090221,108650.0,108640.0,1.05919751]
[1748323220966,0.00249559,108650.0,108640.0,1.38311326]
[1748323221173,0.00249559,108650.0,108640.0,1.90575926]
[1748323221604,0.00249559,108650.0,108640.0,1.93685926]
[1748323221815,0.00249559,108650.0,108640.0,1.97005926]
[1748323224961,0.00249559,108650.0,108640.0,2.05960482]
[1748323225184,0.00249559,108650.0,108640.0,2.69536482]
[1748323225832,0.00149559,108650.0,108640.0,2.69436482]
[1748323226042,0.00149559,108650.0,108640.0,2.69328482]
[1748323226043,0.00049559,108650.0,108640.0,2.69328482]
[1748323226268,0.00149559,108650.0,108640.0,2.69828482]
[1748323226469,0.00249559,108650.0,108640.0,2.70528482]
[1748323227100,0.00249559,108650.0,108640.0,1.04150307]
[1748323227307,0.00249559,108650.0,108640.0,2.28631282]
[1748323227734,0.01169869,108650.0,108640.0,1.65063282]
[1748323227985,0.01169869,108650.0,108640.0,2.28631282]
[1748323228187,0.00249559,108650.0,108640.0,2.28631282]
[1748323229962,0.00249559,108650.0,108640.0,1.65063282]
[1748323230372,0.00249559,108650.0,108640.0,2.28627282]